fUST/lending_fUST_20250301
["ID","MTS","AMOUNT","RATE_DAILY","PERIOD"]
[354888447,1740784239998,-151.0,0.00048,120]
[354888448,1740784240008,-494.3394146,0.00048,120]
[354888449,1740784240017,-342.30268,0.00048,120]
[354888450,1740784240027,-151.0,0.00048,120]
[354888451,1740784240036,-342.30268,0.00048,120]
[354888452,1740784240046,-350.0,0.00048026,30]
[354888453,1740784240056,-350.0,0.00048026,30]
[354888454,1740784240065,-350.0,0.00048026,30]
[354888455,1740784240075,-350.0,0.00048026,30]
[354888456,1740784240084,-350.0,0.00048026,30]
[354888457,1740784240094,-350.0,0.00048026,30]
[354888458,1740784240104,-350.0,0.00048026,30]
[354888459,1740784240114,-350.0,0.00048026,30]
[354888460,1740784240126,-350.0,0.00048026,30]
[354888461,1740784240137,-350.0,0.00048026,30]
[354888462,1740784240148,-350.0,0.00048026,30]
[354888463,1740784240157,-350.0,0.00048026,30]
[354888464,1740784240167,-350.0,0.00048026,30]
[354888465,1740784240177,-350.0,0.00048026,30]
[354888466,1740784240187,-350.0,0.00048026,30]
[354888467,1740784240197,-350.0,0.00048026,30]
[354888468,1740784240208,-350.0,0.00048026,30]
[354888469,1740784240219,-350.0,0.00048026,30]
[354888470,1740784240228,-350.0,0.00048026,30]
[354888471,1740784240238,-350.0,0.00048026,30]
[354888472,1740784240247,-350.0,0.00048026,30]
[354888473,1740784240257,-350.0,0.00048026,30]
[354888474,1740784240266,-350.0,0.00048026,30]
[354888475,1740784240276,-350.0,0.00048026,30]
[354888476,1740784240286,-350.0,0.00048026,30]
[354888477,1740784240296,-350.0,0.00048026,30]
[354888478,1740784240305,-350.0,0.00048026,30]
[354888479,1740784240315,-350.0,0.00048026,30]
[354888480,1740784240324,-350.0,0.00048026,30]
[354888481,1740784240334,-350.0,0.00048026,30]
[354888482,1740784240344,-350.0,0.00048026,30]
[354888483,1740784240356,-350.0,0.00048026,30]
[354888484,1740784240366,-350.0,0.00048026,30]
[354888485,1740784240376,-350.0,0.00048026,30]
[354888486,1740784240386,-350.0,0.00048026,30]
[354888487,1740784240396,-350.0,0.00048026,30]
[354888488,1740784240406,-350.0,0.00048026,30]
[354888489,1740784240416,-350.0,0.00048026,30]
[354888490,1740784240426,-350.0,0.00048026,30]
[354888491,1740784240436,-350.0,0.00048026,30]
[354888492,1740784240446,-350.0,0.00048026,30]
[354888493,1740784240456,-447.18107019,0.00048026,30]
[354888494,1740784240466,-151.0,0.00048026,120]
[354888495,1740784240476,-151.000001,0.00048026,120]
[354888496,1740784240486,-151.0,0.00048026,120]
[354888497,1740784240496,-285.730142,0.00048026,120]
[354888498,1740784240506,-285.730142,0.00048026,120]
[354888499,1740784240515,-5000.0,0.00048026,120]
[354888500,1740784240525,-5000.0,0.00048026,120]
[354888501,1740784240535,-5000.0,0.00048026,120]
[354888502,1740784240544,-5000.0,0.00048026,120]
[354888503,1740784240554,-5000.0,0.00048026,120]
[354888504,1740784240564,-5000.0,0.00048026,120]
[354888505,1740784240573,-5000.0,0.00048026,120]
[354888506,1740784240583,-5000.0,0.00048026,120]
[354888507,1740784240592,-5000.0,0.00048026,120]
[354888508,1740784240604,-5000.0,0.00048026,120]
[354888509,1740784240614,-5000.0,0.00048026,120]
[354888510,1740784240623,-5000.0,0.00048026,120]
[354888511,1740784240633,-5000.0,0.00048026,120]
[354888512,1740784240642,-1862.917642,0.00048026,120]
[354888513,1740784240652,-151.0,0.000481,24]
[354888514,1740784240662,-151.0,0.000481,24]
[354888515,1740784240671,-166.1,0.00048115,2]
[354888516,1740784240681,-500.0,0.00048115,2]
[354888517,1740784240690,-153.554292,0.00048168,2]
[354888519,1740784240700,-226.4960247,0.0004817,2]
[354888521,1740784240709,-233.21643222,0.0004817,2]
[354888523,1740784240719,-8000.0,0.00048171,120]
[354888525,1740784240728,-8000.0,0.00048171,120]
[354888527,1740784240738,-8000.0,0.00048171,120]
[354888529,1740784240747,-8000.0,0.00048171,120]
[354888531,1740784240756,-8000.0,0.00048171,120]
[354888533,1740784240766,-8000.0,0.00048171,120]
[354888535,1740784240775,-8000.0,0.00048171,120]
[354888537,1740784240784,-8000.0,0.00048171,120]
[354888539,1740784240795,-8000.0,0.00048171,120]
[354888541,1740784240804,-8000.0,0.00048171,120]
[354888543,1740784240814,-8000.0,0.00048171,120]
[354888545,1740784240823,-8000.0,0.00048171,120]
[354888547,1740784240833,-8000.0,0.00048171,120]
[354888548,1740784240842,-8000.0,0.00048171,120]
[354888551,1740784240854,-8000.0,0.00048171,120]
[354888552,1740784240864,-8000.0,0.00048171,120]
[354888555,1740784240874,-8000.0,0.00048171,120]
[354888556,1740784240884,-8000.0,0.00048171,120]
[354888558,1740784240894,-8000.0,0.00048171,120]
[354888560,1740784240904,-8000.0,0.00048171,120]
[354888562,1740784240913,-8000.0,0.00048171,120]
[354888564,1740784240924,-8000.0,0.00048171,120]
[354888565,1740784240935,-8000.0,0.00048171,120]
[354888566,1740784240944,-8000.0,0.00048171,120]
[354888567,1740784240955,-8000.0,0.00048171,120]
[354888568,1740784240965,-8000.0,0.00048171,120]
[354888569,1740784240974,-8000.0,0.00048171,120]
[354888571,1740784240984,-8000.0,0.00048171,120]
[354888572,1740784240993,-8000.0,0.00048171,120]
[354888574,1740784241003,-8000.0,0.00048171,120]
[354888576,1740784241013,-8000.0,0.00048171,120]
[354888578,1740784241022,-151.0,0.00048171,120]
[354888580,1740784241032,-151.0,0.00048171,120]
[354888582,1740784241041,-151.0,0.00048171,120]
[354888584,1740784241051,-151.0,0.00048171,120]
[354888586,1740784241061,-284.0,0.00048171,120]
[354888588,1740784241071,-282.359519,0.00048171,120]
[354888590,1740784241080,-167.793047,0.00048171,120]
[354888592,1740784241090,-167.793047,0.00048171,120]
[354888594,1740784241102,-285.730142,0.00048171,120]
[354888596,1740784241112,-285.730142,0.00048171,120]
[354888598,1740784241122,-285.730142,0.00048171,120]
[354888600,1740784241137,-167.793047,0.00048171,120]
[354888602,1740784241147,-167.793047,0.00048171,120]
[354888604,1740784241158,-285.730142,0.00048171,120]
[354888606,1740784241167,-285.730142,0.00048171,120]
[354888608,1740784241180,-285.730142,0.00048171,120]
[354888610,1740784241190,-151.0,0.00048171,120]
[354888612,1740784241201,-198.0,0.00048171,120]
[354888614,1740784241213,-151.0,0.00048171,120]
[354888616,1740784241223,-651.417421,0.00048171,120]
[354888618,1740784241234,-651.417421,0.00048171,120]
[354888620,1740784241246,-651.417421,0.00048171,120]
[354888622,1740784241257,-651.417421,0.00048171,120]
[354888624,1740784241268,-151.0,0.00048171,120]
[354888626,1740784241278,-151.0,0.00048171,120]
[354888627,1740784241289,-446.354093,0.00048171,120]
[354888628,1740784241299,-446.354093,0.00048171,120]
[354888629,1740784241309,-446.354093,0.00048171,120]
[354888631,1740784241319,-446.354093,0.00048171,120]
[354888633,1740784241329,-246.330403,0.00048171,7]
[354888634,1740784241338,-180.509859,0.00048171,120]
[354888636,1740784241351,-180.509859,0.00048171,120]
[354888638,1740784241360,-151.0,0.00048171,120]
[354888640,1740784241371,-151.0,0.00048171,120]
[354888642,1740784241381,-180.509859,0.00048171,120]
[354888643,1740784241390,-180.509859,0.00048171,120]
[354888644,1740784241400,-331.223689,0.00048171,120]
[354888645,1740784241410,-331.223689,0.00048171,120]
[354888646,1740784241420,-331.223689,0.00048171,120]
[354888647,1740784241431,-331.223689,0.00048171,120]
[354888648,1740784241441,-2499.961505,0.00048171,120]
[354888649,1740784241451,-2499.961505,0.00048171,120]
[354888650,1740784241461,-2499.961505,0.00048171,120]
[354888651,1740784241472,-2499.961505,0.00048171,120]
[354888653,1740784241482,-151.0,0.000482,26]
[354888655,1740784241492,-151.0,0.000482,27]
[354888657,1740784241503,-151.0,0.000482,21]
[354888659,1740784241513,-151.0,0.000482,27]
[354888661,1740784241523,-205.67844343,0.00048233,11]
[354888663,1740784241533,-186.0,0.00048264,2]
[354888665,1740784241543,-204.0,0.00048264,2]
[354888666,1740784241554,-292.0,0.00048264,2]
[354888667,1740784241564,-3125.08723183,0.00048265,120]
[354888668,1740784241574,-405.6909224,0.000483,120]
[354888669,1740784241584,-150.0,0.000483,120]
[354888670,1740784241594,-500.0,0.000483,30]
[354888671,1740784241609,-151.0,0.000483,22]
[354888672,1740784241619,-150.0,0.000483,120]
[354888673,1740784241630,-151.0,0.000483,21]
[354888674,1740784241640,-151.0,0.000483,21]
[354888675,1740784241650,-7947.23,0.000483,30]
[354888676,1740784241661,-151.0,0.000483,30]
[354888677,1740784241671,-410.323418,0.000483,107]
[354888678,1740784241681,-151.0,0.000483,30]
[354888679,1740784241691,-151.0,0.000483,120]
[354888680,1740784241701,-151.0,0.000483,120]
[354888681,1740784241712,-150.0,0.000483,2]
[354888682,1740784241724,-167.793047,0.000483,120]
[354888683,1740784241734,-167.793047,0.000483,120]
[354888684,1740784241744,-651.417421,0.000483,120]
[354888685,1740784241754,-651.417421,0.000483,120]
[354888686,1740784241764,-151.0,0.000483,120]
[354888687,1740784241775,-446.354093,0.000483,120]
[354888688,1740784241785,-446.354093,0.000483,120]
[354888689,1740784241795,-180.509859,0.000483,120]
[354888690,1740784241955,-151.0,0.000483,120]
[354888691,1740784241966,-180.509859,0.000483,120]
[354888692,1740784241975,-483.90655533,0.00048329,2]
[354888693,1740784241985,-153.554292,0.00048358,2]
[354888694,1740784241996,-151.0,0.000484,25]
[354888695,1740784242006,-151.0,0.000484,29]
[354888696,1740784242016,-151.0,0.000484,24]
[354888697,1740784242026,-151.0,0.000484,21]
[354888698,1740784242036,-3000.0,0.000484,2]
[354888699,1740784242046,-193.510981,0.000484,120]
[354888700,1740784242055,-331.223689,0.000484,120]
[354888701,1740784242065,-331.223689,0.000484,120]
[354888702,1740784242075,-10961.05617861,0.000484,2]
[354888703,1740784242085,-2499.961505,0.000484,120]
[354888704,1740784242095,-2499.961505,0.000484,120]
[354888705,1740784242107,-167.793047,0.00048472,120]
[354888706,1740784242117,-167.793047,0.00048472,120]
[354888707,1740784242129,-651.417421,0.00048472,120]
[354888708,1740784242141,-651.417421,0.00048472,120]
[354888709,1740784242151,-151.0,0.00048472,120]
[354888710,1740784242160,-446.354093,0.00048472,120]
[354888711,1740784242171,-446.354093,0.00048472,120]
[354888712,1740784242181,-180.509859,0.00048472,120]
[354888713,1740784242191,-151.0,0.00048472,120]
[354888714,1740784242200,-180.509859,0.00048472,120]
[354888715,1740784242212,-331.223689,0.00048472,120]
[354888716,1740784242222,-331.223689,0.00048472,120]
[354888717,1740784242232,-2499.961505,0.00048472,120]
[354888718,1740784242242,-2499.961505,0.00048472,120]
[354888719,1740784242252,-297.8266841,0.00048473,10]
[354888720,1740784242263,-500.0,0.00048473,10]
[354888721,1740784242272,-164.57932437,0.00048473,2]
[354888722,1740784242282,-501.51514314,0.00048473,2]
[354888723,1740784242292,-500.0,0.00048473,2]
[354888724,1740784242302,-500.0,0.00048473,10]
[354888725,1740784242311,-500.0,0.00048473,10]
[354888726,1740784242321,-303.37559325,0.00048473,7]
[354888727,1740784242330,-318.9051743,0.00048473,10]
[354888728,1740784242340,-503.70867336,0.00048473,10]
[354888729,1740784242350,-502.18715074,0.00048473,10]
[354888730,1740784242360,-639.23073795,0.00048473,10]
[354888731,1740784242370,-502.12978651,0.00048473,10]
[354888732,1740784242380,-500.0,0.00048473,10]
[354888733,1740784242390,-500.0,0.00048473,10]
[354888734,1740784242400,-500.0,0.00048473,7]
[354888735,1740784242410,-500.0,0.00048473,10]
[354888736,1740784242419,-160.45547627,0.00048473,10]
[354888737,1740784242429,-278.17822523,0.00048473,10]
[354888738,1740784242438,-307.98628014,0.00048473,10]
[354888739,1740784242448,-500.0,0.00048473,3]
[354888740,1740784242458,-471.68943426,0.00048473,10]
[354888741,1740784242467,-500.0,0.00048473,10]
[354888742,1740784242477,-500.0,0.00048473,10]
[354888743,1740784242486,-500.0,0.00048473,10]
[354888744,1740784242496,-500.0,0.00048473,10]
[354888745,1740784242505,-151.0,0.00048473,120]
[354888746,1740784242515,-160.96805121,0.00048499,30]
[354888747,1740784242525,-151.0,0.00048499,120]
[354888748,1740784242534,-242.175795,0.00048499,120]
[354888749,1740784242544,-287.195776,0.00048499,120]
[354888750,1740784242553,-287.195776,0.00048499,120]
[354888751,1740784242563,-151.0,0.00048499,120]
[354888752,1740784242573,-151.0,0.00048499,120]
[354888753,1740784242583,-151.0,0.00048499,120]
[354888754,1740784242592,-682.618268,0.00048499,120]
[354888755,1740784242605,-682.618268,0.00048499,120]
[354888756,1740784242614,-64677.95161441,0.000485,37]
[354888757,1740784242624,-17024.62788643,0.000485,35]
[354888758,1740784242633,-55986.42227552,0.000485,120]
[354888789,1740784244775,-0.65638419,0.000485,120]
[354888850,1740784247390,-13500.02557906,0.000485,120]
[354888851,1740784247473,-2373.193507,0.000485,120]
[354888852,1740784297008,4904.0474,0.0003,10]
[354888853,1740784297030,95.9526,0.0003,10]
[354888854,1740784304839,3417.8766,0.0003,10]
[354888855,1740784304861,1582.1234,0.0003,10]
[354888856,1740784307236,3319.02238812,0.00040131,2]
[354888857,1740784307258,3555.12874302,0.00040131,2]
[354888858,1740784313461,5000.0,0.0003,10]
[354888860,1740784321383,1030.40424195,0.0003,10]
[354888861,1740784322966,150.0,0.00022082,14]
[354888862,1740784323269,150.0,0.00022082,14]
[354888863,1740784323558,154.0,0.00022082,14]
[354888864,1740784329494,5000.0,0.0003,10]
[354888865,1740784712496,-150.0,0.00030137,2]
[354888866,1740784957173,92786.22733592,0.0003,14]
[354888867,1740784957198,150000.0,0.0003,14]
[354888868,1740784957224,257213.77266408,0.0003,14]
[354888872,1740785180620,798.4263744,0.0003,120]
[354888877,1740785243110,-151.33327258,0.00030077,2]
[354888878,1740785243132,-12.15890889,0.00030137,2]
[354888879,1740785243153,-305.453687,0.00032877,2]
[354888880,1740785243174,-726.1691774,0.00035452,2]
[354888881,1740785243194,-1565.02331298,0.00035985,2]
[354888882,1740785250330,12004.0,0.0003,2]
[354888891,1740785279105,543.75369021,0.0002035,2]
[354888903,1740785308721,326.69206919,0.00023,60]
[354888905,1740785313586,150.999999,0.00023,2]
[354888906,1740785314973,2274.98441435,0.000145,2]
[354888907,1740785315880,17204.62389958,0.00015,4]
[354888917,1740785332085,568.63694086,0.000279,2]
[354888919,1740785347304,-545.24777525,0.00031,10]
[354888920,1740785347324,-248.71943001,0.000325,30]
[354888921,1740785347343,-568.63694086,0.000329,2]
[354888922,1740785347364,-500.0,0.00033,2]
[354888923,1740785347384,-400.0,0.00034999,2]
[354888924,1740785347405,-4076.95123661,0.00035,2]
[354888925,1740785347426,-11521.29275839,0.00035,2]
[354888926,1740785347445,-2084.77880362,0.00035985,2]
[354888927,1740785347467,-500.0,0.00035999,15]
[354888928,1740785347489,-500.0,0.00035999,2]
[354888929,1740785347516,-500.0,0.00035999,15]
[354888930,1740785347539,-650.0,0.00035999,15]
[354888931,1740785347562,-500.0,0.00035999,2]
[354888932,1740785347588,-500.0,0.00035999,15]
[354888933,1740785347611,-500.0,0.00035999,15]
[354888934,1740785347633,-500.0,0.00035999,2]
[354888935,1740785347653,-398.90464413,0.00035999,15]
[354888936,1740785347888,-500.0,0.00035999,2]
[354888937,1740785347911,-500.0,0.00035999,15]
[354888938,1740785347934,-500.0,0.00035999,15]
[354888939,1740785347956,-500.0,0.00035999,2]
[354888940,1740785347977,-500.0,0.00035999,2]
[354888941,1740785347999,-500.0,0.00035999,15]
[354888942,1740785348021,-187.5,0.00035999,15]
[354888943,1740785348043,-593.59040453,0.00035999,2]
[354888944,1740785348064,-500.0,0.00035999,15]
[354888945,1740785348086,-500.0,0.00035999,2]
[354888946,1740785348108,-500.0,0.00035999,2]
[354888947,1740785348128,-50191.07889592,0.00036,30]
[354888948,1740785348150,-305.453687,0.00036008,2]
[354888950,1740785348170,-1356.6713653,0.00036047,2]
[354888951,1740785348191,-250.0,0.00036174,2]
[354888952,1740785348216,-2654.81557497,0.000362,98]
[354888953,1740785348236,-711.3376927,0.00036258,2]
[354888954,1740785348257,-293.0,0.00036508,2]
[354888955,1740785348277,-9277.4017148,0.00036508,2]
[354888956,1740785348299,-560.0,0.00037527,2]
[354888957,1740785348323,-205.10188528,0.000379,8]
[354888958,1740785348344,-475.136896,0.00038386,2]
[354888959,1740785348364,-250.0,0.00038481,2]
[354888960,1740785348385,-305.453687,0.00039139,2]
[354888961,1740785348406,-24900.0,0.00039193,2]
[354888962,1740785348428,-2654.81557494,0.00039509,117]
[354888963,1740785348450,-205.10188521,0.00039789,8]
[354888964,1740785348471,-13315.94315985,0.000398,60]
[354888965,1740785348494,-380.0,0.0003986,120]
[354888966,1740785348514,-226.40967253,0.0004,120]
[354888967,1740785348536,-297280.72934654,0.0004,30]
[354888968,1740785348557,-999.73089517,0.0004013,2]
[354888969,1740785348580,-3125.84886886,0.00040131,2]
[354888970,1740785348601,-783.0,0.00040237,5]
[354888971,1740785348623,-205.10188521,0.00041678,9]
[354888972,1740785348642,-396.96559857,0.0004198,2]
[354888973,1740785348662,-305.453687,0.0004227,2]
[354888974,1740785348684,-2654.81557494,0.00043109,120]
[354888975,1740785348704,-1097.0,0.00043143,5]
[354888976,1740785348726,-205.10188521,0.00043567,9]
[354888977,1740785348747,-500.0,0.00043835,2]
[354888978,1740785348769,-500.0,0.00043835,2]
[354888979,1740785348790,-397.48250303,0.00044488,2]
[354888980,1740785348812,-500.0,0.00044555,120]
[354888981,1740785348833,-500.0,0.00044555,31]
[354888982,1740785348853,-169.13231235,0.00044555,120]
[354888983,1740785348873,-393.53187158,0.00044555,120]
[354888984,1740785348894,-500.0,0.00044555,120]
[354888985,1740785348914,-500.0,0.00044555,31]
[354888986,1740785348935,-500.0,0.00044555,31]
[354888987,1740785348956,-500.0,0.00044555,120]
[354888988,1740785348979,-511.44117648,0.00044555,120]
[354888989,1740785348999,-500.0,0.00044555,31]
[354888990,1740785349020,-379.39376414,0.00044555,31]
[354888991,1740785349041,-237466.50443123,0.00044556,120]
[354888993,1740785351071,-12805.1406,0.00044556,120]
[354888994,1740785351302,2297.75,0.0004,30]
[354888995,1740785355342,153.554292,0.00042726,14]
[354888996,1740785355671,153.554292,0.00036363,14]
[354889000,1740785365095,-156982.65503745,0.00044556,120]
[354889002,1740785387817,3017.5208561,0.00038192,2]
[354889005,1740785404311,500.0,0.00042111,7]
[354889006,1740785404339,500.0,0.00042111,10]
[354889007,1740785404370,500.0,0.00042111,10]
[354889008,1740785404426,297.8266841,0.00042111,10]
[354889009,1740785404466,160.27220356,0.00042111,2]
[354889010,1740785404617,500.0,0.00042111,10]
[354889011,1740785404835,502.12978651,0.00042111,10]
[354889012,1740785405003,303.37559325,0.00042111,7]
[354889013,1740785409976,218.09577781,0.00035999,2]
[354889014,1740785410006,500.0,0.00035999,15]
[354889015,1740785410039,301.54197758,0.00035999,15]
[354889016,1740785410068,500.0,0.00035999,15]
[354889017,1740785410100,518.19502999,0.00035999,15]
[354889018,1740785410234,500.0,0.00042111,10]
[354889019,1740785412097,467.86639651,0.00035494,2]
[354889020,1740785413390,465.14331983,0.00037268,2]
[354889024,1740785427392,500.0,0.00035999,15]
[354889025,1740785427433,500.0,0.00035999,15]
[354889026,1740785427475,500.0,0.00035999,15]
[354889027,1740785427526,261.06112257,0.00035999,15]
[354889028,1740785427570,500.0,0.00035999,15]
[354889029,1740785427641,500.0,0.00035999,15]
[354889030,1740785427678,500.0,0.00035999,15]
[354889031,1740785427721,500.0,0.00035999,15]
[354889032,1740785427891,500.0,0.00035999,15]
[354889051,1740785438318,-2270.63101606,0.00044473,28]
[354889052,1740785438328,-265.0,0.00044555,5]
[354889053,1740785438338,-163.0,0.00044556,2]
[354889054,1740785438347,-5425.75820333,0.00044556,120]
[354889055,1740785438359,-53854.85257234,0.00044556,120]
[354889056,1740785438566,-10332.73530913,0.00044556,120]
[354889057,1740785438613,-500.0,0.00044556,120]
[354889058,1740785440079,500.0,0.00035999,15]
[354889059,1740785440108,500.0,0.00035999,2]
[354889060,1740785440137,500.0,0.00035999,15]
[354889061,1740785440164,408.98027915,0.00035999,15]
[354889062,1740785440200,500.0,0.00035999,15]
[354889063,1740785440233,500.0,0.00035999,2]
[354889064,1740785440262,500.0,0.00035999,15]
[354889065,1740785440288,499.924,0.00035999,15]
[354889066,1740785440318,500.0,0.00035999,2]
[354889068,1740785440625,500.0,0.00035999,15]
[354889108,1740785454537,375.0,0.00035999,15]
[354889109,1740785454563,500.0,0.00035999,15]
[354889110,1740785454593,595.72764529,0.00035999,2]
[354889111,1740785454972,414.9458176,0.00035999,15]
[354889115,1740785496760,160.0,0.0002,3]
[354889116,1740785498215,160.0,0.0003,10]
[354889117,1740785504875,24900.0,0.00039277,2]
[354889119,1740785550556,19618.25597294,0.00026,3]
[354889122,1740785779707,5000.0,0.0003,14]
[354889124,1740785810740,504.2,0.0003,2]
[354889132,1740786397801,-400.0,0.00030999,2]
[354889133,1740786397827,-500.0,0.00031,10]
[354889134,1740786397855,-500.0,0.00031,10]
[354889135,1740786397881,-500.0,0.00031,10]
[354889136,1740786397908,-500.0,0.00031,10]
[354889137,1740786397934,-500.0,0.00031,10]
[354889138,1740786397961,-500.0,0.00031,10]
[354889139,1740786397988,-500.0,0.00031,10]
[354889140,1740786398015,-500.0,0.00031,10]
[354889141,1740786398042,-500.0,0.00031,10]
[354889142,1740786398069,-649.6616401,0.00031,10]
[354889143,1740786398095,-500.0,0.00031,10]
[354889144,1740786398122,-844.80653578,0.00031,10]
[354889145,1740786398147,-176.75,0.00031,2]
[354889146,1740786398172,-250.0,0.00032566,2]
[354889147,1740786398198,-253.101318,0.00032877,2]
[354889148,1740786398223,-500.0,0.00033,2]
[354889149,1740786398251,-500.0,0.00033,2]
[354889150,1740786398279,-500.0,0.00033,2]
[354889151,1740786398305,-500.0,0.00033,2]
[354889152,1740786398332,-500.0,0.00033,2]
[354889153,1740786398358,-500.0,0.00033,2]
[354889154,1740786398384,-500.0,0.00033,2]
[354889155,1740786398411,-500.0,0.00033,2]
[354889156,1740786398438,-500.0,0.00033,2]
[354889157,1740786398464,-500.0,0.00033,2]
[354889158,1740786398491,-500.0,0.00033,2]
[354889159,1740786398519,-500.0,0.00033,2]
[354889160,1740786398545,-500.0,0.00033,2]
[354889161,1740786398571,-189.091038,0.00033163,2]
[354889162,1740786398599,-560.0,0.00033376,2]
[354889163,1740786398624,-174.919398,0.00033622,2]
[354889164,1740786398650,-174.919398,0.00033622,120]
[354889165,1740786398676,-293.0,0.00033628,2]
[354889166,1740786398700,-2737.4710134,0.00033628,2]
[354889167,1740786398729,-204.60184036,0.000339,6]
[354889168,1740786398756,-204.60184014,0.00034817,7]
[354889169,1740786433096,-380.0,0.00035135,2]
[354889170,1740786433118,-1743.4366171,0.0003517,2]
[354889171,1740786433140,-1082.88465,0.0003523,2]
[354889172,1740786433162,-253.101318,0.00036008,2]
[354889173,1740786433184,-400.0,0.00036099,2]
[354889174,1740786433206,-2225.04483479,0.000361,2]
[354889175,1740786433228,-154.93,0.00036189,2]
[354889176,1740786433249,-154.93,0.00036189,2]
[354889177,1740786433434,-154.93,0.00036189,2]
[354889178,1740786433466,-154.93,0.00036189,2]
[354889179,1740786433487,-154.93,0.0003619,2]
[354889180,1740786433509,-154.93,0.0003619,2]
[354889181,1740786433530,-154.93,0.0003619,2]
[354889182,1740786433552,-154.93,0.0003619,2]
[354889183,1740786433573,-154.93,0.0003619,2]
[354889184,1740786433595,-154.93,0.0003619,2]
[354889185,1740786433617,-398.90464413,0.00036199,15]
[354889186,1740786433641,-500.0,0.00036199,15]
[354889187,1740786433666,-500.0,0.00036199,2]
[354889188,1740786433689,-500.0,0.00036199,15]
[354889189,1740786433713,-500.0,0.00036199,2]
[354889190,1740786433737,-500.0,0.00036199,15]
[354889191,1740786433761,-500.0,0.00036199,2]
[354889192,1740786433783,-500.0,0.00036199,15]
[354889193,1740786433807,-187.5,0.00036199,15]
[354889194,1740786433832,-593.59040453,0.00036199,2]
[354889195,1740786433859,-500.0,0.00036199,15]
[354889196,1740786433883,-500.0,0.00036199,15]
[354889197,1740786433907,-500.0,0.00036199,2]
[354889198,1740786433932,-500.0,0.00036199,15]
[354889199,1740786433957,-500.0,0.00036199,2]
[354889200,1740786433981,-500.0,0.00036199,15]
[354889201,1740786434006,-500.0,0.00036199,15]
[354889202,1740786434031,-500.0,0.00036199,2]
[354889203,1740786434055,-576.10611226,0.00036199,15]
[354889204,1740786434079,-500.0,0.00036199,2]
[354889205,1740786434104,-500.0,0.00036199,2]
[354889206,1740786434127,-7917.86514433,0.000362,98]
[354889207,1740786434150,-7917.86514433,0.000362,98]
[354889208,1740786434171,-154.93,0.00036353,2]
[354889209,1740786434194,-153.921902,0.00036363,14]
[354889210,1740786434217,-189.091038,0.0003648,2]
[354889211,1740786434239,-2225.04483474,0.0003813,2]
[354889212,1740786434261,-560.0,0.00038662,5]
[354889213,1740786434282,-253.101318,0.00039139,2]
[354889214,1740786434303,-154.93,0.00040015,2]
[354889215,1740786434327,-1959.95034243,0.00040137,2]
[354889216,1740786434348,-2225.04483474,0.0004016,28]
[354889217,1740786434370,-151.0,0.000402,16]
[354889218,1740786434390,-168.11,0.00040227,2]
[354889219,1740786434411,-168.11,0.00040227,2]
[354889220,1740786434433,-168.11,0.00040227,2]
[354889221,1740786434454,-168.11,0.00040227,2]